{"text_format":"1","workbook":"xlsx","n_sheets":2,"sheets":["Instrukcijos ir sąranka","Rugsėjo12"],"not_rendered":{"charts":0,"images":0,"macros":1,"external_links":0,"defined_names":15,"comments":0,"pivot_tables":0},"unopened":[],"bounds":{"document_bytes":16777216,"sheet_cells":100000,"rows_first":2000,"rows_last":500,"rows_between":2000,"halvings":0,"cell_chars":16384,"cell_head_chars":4096},"cells_cut":0,"cells_raw":0,"read":"whole","date_system":"1900"}

{"sheet":"Instrukcijos ir sąranka","index":0,"n_rows":23,"n_cols":9,"rows_kept":23,"cut":false,"hidden":false,"merged":[[11,7,11,8],[4,7,4,8],[6,7,6,8],[8,7,8,8],[10,7,10,8],[3,2,3,4],[5,2,5,4],[7,2,7,4],[9,2,9,4],[3,7,3,8],[5,7,5,8],[7,7,7,8],[9,7,9,8]]}
[]
[null,"Instrukcijos ir sąranka"]
[]
[null,1,"Žemiau pateiktoje lentelėje Pamokos įveskite pamokų, kurias norite stebėti tvarkaraštyje, pavadinimus.",null,null,null,5,"Įveskite tvarkaraščio pradžios datą langelyje A5."]
[]
[null,2,"Žemiau pateiktoje lentelėje Veikla modifikuokite veiklos pavyzdžius, kad ji atitiktų jūsų poreikius. ",null,null,null,6,"4 eilutėjeį tvarkaraštį įtraukite pamokas naudodami išplečiamąjį sąrašą. "]
[]
[null,3,"Langelyje I14 nustatykite eilučių, kurias norite naudoti kiekvienos dienos namų darbų veiklai, skaičių.",null,null,null,7,"Po kiekviena pamoka, įtraukite užduotis stulpelyje Užduotys ."]
[]
[null,4,"Tvarkaraščio lape, pvz. rugsėjo 12 d.,atlikite 5–9 veiksmus.",null,null,null,8,"Valandų stulpelyje, pažymėtame laikrodžio piktograma, įvertinkite, kiek iš viso valandų prireiks kiekvienai užduočiai atlikti."]
[]
[null,null,null,null,null,null,9,"Užbaigę užduotį, šalia jos dukart spustelėkite stulpelyje Atlikta, kuris pažymėtas varnele."]
[]
[null,null,"Pamokos",null,"Veikla",null,null,"Kiekvienos dienos eilučių skaičius:",5]
[null,null,"Matematika 101",null,"Diskusija"]
[null,null,"Anglų k. 105",null,"Laboratorinis darbas"]
[null,null,"Prancūzų k. 103",null,"Paskaita"]
[null,null,"Gamtos mokslai 101",null,"Viktorina"]
[null,null,"Istorija 101",null,"Skaitymas"]
[null,null,null,null,"Apmąstymas"]
[null,null,null,null,"Mokslinis tyrimas"]
[null,null,null,null,"Peržiūrėti užduotis"]
[null,null,null,null,"Mokymasis"]

{"sheet":"Rugsėjo12","index":1,"n_rows":103,"n_cols":24,"rows_kept":103,"cut":false,"hidden":false,"merged":[]}
[]
[null,"Namų darbai"]
[]
[null,"Įveskite\npradžios datą","Iš viso"," Pamoka:",null,"Matematika 101"," Pamoka:",null,"Anglų k. 105"," Pamoka:",null,"Prancūzų k. 103"," Pamoka:",null,"Gamtos mokslai 101"," Pamoka:",null,null," Pamoka:",null,null," Pamoka:"]
[null,"2011-09-12",null,null,null,"UŽDUOTIS",null,null,"UŽDUOTIS",null,null,"UŽDUOTIS",null,null,"UŽDUOTIS",null,null,"UŽDUOTIS",null,null,"UŽDUOTIS",null,null,"UŽDUOTIS"]
[]
[null,{"$f":"GrafikoDiena","v":"2011-09-12"},{"$f":"KasdieninėsValandųBendrosiosSumos","v":6.5},1,1.5,"Skaitymas",1,2,"Mokymasis",null,1,"Skaitymas",1,1,"Viktorina"]
[null,{"$f":"GrafikoDiena","v":""},{"$f":"KasdieninėsValandųBendrosiosSumos","v":""},1,1,"Peržiūrėti užduotis"]
[null,{"$f":"GrafikoDiena","v":""},{"$f":"KasdieninėsValandųBendrosiosSumos","v":""}]
[null,{"$f":"GrafikoDiena","v":""},{"$f":"KasdieninėsValandųBendrosiosSumos","v":""}]
[null,{"$f":"GrafikoDiena","v":""},{"$f":"KasdieninėsValandųBendrosiosSumos","v":""}]
[null,{"$f":"GrafikoDiena","v":"2011-09-13"},{"$f":"KasdieninėsValandųBendrosiosSumos","v":0}]
[null,{"$f":"GrafikoDiena","v":""},{"$f":"KasdieninėsValandųBendrosiosSumos","v":""}]
[null,{"$f":"GrafikoDiena","v":""},{"$f":"KasdieninėsValandųBendrosiosSumos","v":""}]
[null,{"$f":"GrafikoDiena","v":""},{"$f":"KasdieninėsValandųBendrosiosSumos","v":""}]
[null,{"$f":"GrafikoDiena","v":""},{"$f":"KasdieninėsValandųBendrosiosSumos","v":""}]
[null,{"$f":"GrafikoDiena","v":"2011-09-14"},{"$f":"KasdieninėsValandųBendrosiosSumos","v":0}]
[null,{"$f":"GrafikoDiena","v":""},{"$f":"KasdieninėsValandųBendrosiosSumos","v":""}]
[null,{"$f":"GrafikoDiena","v":""},{"$f":"KasdieninėsValandųBendrosiosSumos","v":""}]
[null,{"$f":"GrafikoDiena","v":""},{"$f":"KasdieninėsValandųBendrosiosSumos","v":""}]
[null,{"$f":"GrafikoDiena","v":""},{"$f":"KasdieninėsValandųBendrosiosSumos","v":""}]
[null,{"$f":"GrafikoDiena","v":"2011-09-15"},{"$f":"KasdieninėsValandųBendrosiosSumos","v":0}]
[null,{"$f":"GrafikoDiena","v":""},{"$f":"KasdieninėsValandųBendrosiosSumos","v":""}]
[null,{"$f":"GrafikoDiena","v":""},{"$f":"KasdieninėsValandųBendrosiosSumos","v":""}]
[null,{"$f":"GrafikoDiena","v":""},{"$f":"KasdieninėsValandųBendrosiosSumos","v":""}]
[null,{"$f":"GrafikoDiena","v":""},{"$f":"KasdieninėsValandųBendrosiosSumos","v":""}]
[null,{"$f":"GrafikoDiena","v":"2011-09-16"},{"$f":"KasdieninėsValandųBendrosiosSumos","v":0}]
[null,{"$f":"GrafikoDiena","v":""},{"$f":"KasdieninėsValandųBendrosiosSumos","v":""}]
[null,{"$f":"GrafikoDiena","v":""},{"$f":"KasdieninėsValandųBendrosiosSumos","v":""}]
[null,{"$f":"GrafikoDiena","v":""},{"$f":"KasdieninėsValandųBendrosiosSumos","v":""}]
[null,{"$f":"GrafikoDiena","v":""},{"$f":"KasdieninėsValandųBendrosiosSumos","v":""}]
[null,{"$f":"GrafikoDiena","v":"2011-09-17"},{"$f":"KasdieninėsValandųBendrosiosSumos","v":0}]
[null,{"$f":"GrafikoDiena","v":""},{"$f":"KasdieninėsValandųBendrosiosSumos","v":""}]
[null,{"$f":"GrafikoDiena","v":""},{"$f":"KasdieninėsValandųBendrosiosSumos","v":""}]
[null,{"$f":"GrafikoDiena","v":""},{"$f":"KasdieninėsValandųBendrosiosSumos","v":""}]
[null,{"$f":"GrafikoDiena","v":""},{"$f":"KasdieninėsValandųBendrosiosSumos","v":""}]
[null,{"$f":"GrafikoDiena","v":"2011-09-18"},{"$f":"KasdieninėsValandųBendrosiosSumos","v":0}]
[null,{"$f":"GrafikoDiena","v":""},{"$f":"KasdieninėsValandųBendrosiosSumos","v":""}]
[null,{"$f":"GrafikoDiena","v":""},{"$f":"KasdieninėsValandųBendrosiosSumos","v":""}]
[null,{"$f":"GrafikoDiena","v":""},{"$f":"KasdieninėsValandųBendrosiosSumos","v":""}]
[null,{"$f":"GrafikoDiena","v":""},{"$f":"KasdieninėsValandųBendrosiosSumos","v":""}]
[null,{"$f":"GrafikoDiena","v":""},{"$f":"KasdieninėsValandųBendrosiosSumos","v":""}]
[null,{"$f":"GrafikoDiena","v":""},{"$f":"KasdieninėsValandųBendrosiosSumos","v":""}]
[null,{"$f":"GrafikoDiena","v":""},{"$f":"KasdieninėsValandųBendrosiosSumos","v":""}]
[null,{"$f":"GrafikoDiena","v":""},{"$f":"KasdieninėsValandųBendrosiosSumos","v":""}]
[null,{"$f":"GrafikoDiena","v":""},{"$f":"KasdieninėsValandųBendrosiosSumos","v":""}]
[null,{"$f":"GrafikoDiena","v":""},{"$f":"KasdieninėsValandųBendrosiosSumos","v":""}]
[null,{"$f":"GrafikoDiena","v":""},{"$f":"KasdieninėsValandųBendrosiosSumos","v":""}]
[null,{"$f":"GrafikoDiena","v":""},{"$f":"KasdieninėsValandųBendrosiosSumos","v":""}]
[null,{"$f":"GrafikoDiena","v":""},{"$f":"KasdieninėsValandųBendrosiosSumos","v":""}]
[null,{"$f":"GrafikoDiena","v":""},{"$f":"KasdieninėsValandųBendrosiosSumos","v":""}]
[null,{"$f":"GrafikoDiena","v":""},{"$f":"KasdieninėsValandųBendrosiosSumos","v":""}]
[null,{"$f":"GrafikoDiena","v":""},{"$f":"KasdieninėsValandųBendrosiosSumos","v":""}]
[null,{"$f":"GrafikoDiena","v":""},{"$f":"KasdieninėsValandųBendrosiosSumos","v":""}]
[null,{"$f":"GrafikoDiena","v":""},{"$f":"KasdieninėsValandųBendrosiosSumos","v":""}]
[null,{"$f":"GrafikoDiena","v":""},{"$f":"KasdieninėsValandųBendrosiosSumos","v":""}]
[null,{"$f":"GrafikoDiena","v":""},{"$f":"KasdieninėsValandųBendrosiosSumos","v":""}]
[null,{"$f":"GrafikoDiena","v":""},{"$f":"KasdieninėsValandųBendrosiosSumos","v":""}]
[null,{"$f":"GrafikoDiena","v":""},{"$f":"KasdieninėsValandųBendrosiosSumos","v":""}]
[null,{"$f":"GrafikoDiena","v":""},{"$f":"KasdieninėsValandųBendrosiosSumos","v":""}]
[null,{"$f":"GrafikoDiena","v":""},{"$f":"KasdieninėsValandųBendrosiosSumos","v":""}]
[null,{"$f":"GrafikoDiena","v":""},{"$f":"KasdieninėsValandųBendrosiosSumos","v":""}]
[null,{"$f":"GrafikoDiena","v":""},{"$f":"KasdieninėsValandųBendrosiosSumos","v":""}]
[null,{"$f":"GrafikoDiena","v":""},{"$f":"KasdieninėsValandųBendrosiosSumos","v":""}]
[null,{"$f":"GrafikoDiena","v":""},{"$f":"KasdieninėsValandųBendrosiosSumos","v":""}]
[null,{"$f":"GrafikoDiena","v":""},{"$f":"KasdieninėsValandųBendrosiosSumos","v":""}]
[null,{"$f":"GrafikoDiena","v":""},{"$f":"KasdieninėsValandųBendrosiosSumos","v":""}]
[null,{"$f":"GrafikoDiena","v":""},{"$f":"KasdieninėsValandųBendrosiosSumos","v":""}]
[null,{"$f":"GrafikoDiena","v":""},{"$f":"KasdieninėsValandųBendrosiosSumos","v":""}]
[null,{"$f":"GrafikoDiena","v":""},{"$f":"KasdieninėsValandųBendrosiosSumos","v":""}]
[null,{"$f":"GrafikoDiena","v":""},{"$f":"KasdieninėsValandųBendrosiosSumos","v":""}]
[null,{"$f":"GrafikoDiena","v":""},{"$f":"KasdieninėsValandųBendrosiosSumos","v":""}]
[null,{"$f":"GrafikoDiena","v":""},{"$f":"KasdieninėsValandųBendrosiosSumos","v":""}]
[null,{"$f":"GrafikoDiena","v":""},{"$f":"KasdieninėsValandųBendrosiosSumos","v":""}]
[null,{"$f":"GrafikoDiena","v":""},{"$f":"KasdieninėsValandųBendrosiosSumos","v":""}]
[null,{"$f":"GrafikoDiena","v":""},{"$f":"KasdieninėsValandųBendrosiosSumos","v":""}]
[null,{"$f":"GrafikoDiena","v":""},{"$f":"KasdieninėsValandųBendrosiosSumos","v":""}]
[null,{"$f":"GrafikoDiena","v":""},{"$f":"KasdieninėsValandųBendrosiosSumos","v":""}]
[null,{"$f":"GrafikoDiena","v":""},{"$f":"KasdieninėsValandųBendrosiosSumos","v":""}]
[null,{"$f":"GrafikoDiena","v":""},{"$f":"KasdieninėsValandųBendrosiosSumos","v":""}]
[null,{"$f":"GrafikoDiena","v":""},{"$f":"KasdieninėsValandųBendrosiosSumos","v":""}]
[null,{"$f":"GrafikoDiena","v":""},{"$f":"KasdieninėsValandųBendrosiosSumos","v":""}]
[null,{"$f":"GrafikoDiena","v":""},{"$f":"KasdieninėsValandųBendrosiosSumos","v":""}]
[null,{"$f":"GrafikoDiena","v":""},{"$f":"KasdieninėsValandųBendrosiosSumos","v":""}]
[null,{"$f":"GrafikoDiena","v":""},{"$f":"KasdieninėsValandųBendrosiosSumos","v":""}]
[null,{"$f":"GrafikoDiena","v":""},{"$f":"KasdieninėsValandųBendrosiosSumos","v":""}]
[null,{"$f":"GrafikoDiena","v":""},{"$f":"KasdieninėsValandųBendrosiosSumos","v":""}]
[null,{"$f":"GrafikoDiena","v":""},{"$f":"KasdieninėsValandųBendrosiosSumos","v":""}]
[null,{"$f":"GrafikoDiena","v":""},{"$f":"KasdieninėsValandųBendrosiosSumos","v":""}]
[null,{"$f":"GrafikoDiena","v":""},{"$f":"KasdieninėsValandųBendrosiosSumos","v":""}]
[null,{"$f":"GrafikoDiena","v":""},{"$f":"KasdieninėsValandųBendrosiosSumos","v":""}]
[null,{"$f":"GrafikoDiena","v":""},{"$f":"KasdieninėsValandųBendrosiosSumos","v":""}]
[null,{"$f":"GrafikoDiena","v":""},{"$f":"KasdieninėsValandųBendrosiosSumos","v":""}]
[null,{"$f":"GrafikoDiena","v":""},{"$f":"KasdieninėsValandųBendrosiosSumos","v":""}]
[null,{"$f":"GrafikoDiena","v":""},{"$f":"KasdieninėsValandųBendrosiosSumos","v":""}]
[null,{"$f":"GrafikoDiena","v":""},{"$f":"KasdieninėsValandųBendrosiosSumos","v":""}]
[null,{"$f":"GrafikoDiena","v":""},{"$f":"KasdieninėsValandųBendrosiosSumos","v":""}]
[null,{"$f":"GrafikoDiena","v":""},{"$f":"KasdieninėsValandųBendrosiosSumos","v":""}]
[null,{"$f":"GrafikoDiena","v":""},{"$f":"KasdieninėsValandųBendrosiosSumos","v":""}]
[null,{"$f":"GrafikoDiena","v":""},{"$f":"KasdieninėsValandųBendrosiosSumos","v":""}]
[null,{"$f":"GrafikoDiena","v":""},{"$f":"KasdieninėsValandųBendrosiosSumos","v":""}]
[null,{"$f":"GrafikoDiena","v":""},{"$f":"KasdieninėsValandųBendrosiosSumos","v":""}]
[null,{"$f":"GrafikoDiena","v":""},{"$f":"KasdieninėsValandųBendrosiosSumos","v":""}]